fUSD/lending_fUSD_20250823
["ID","MTS","AMOUNT","RATE_DAILY","PERIOD"]
[380964769,1755912831145,-316.59,0.00019178,2]
[380964770,1755912831155,-416.84,0.00019178,2]
[380964771,1755912831165,-552.81,0.00019178,2]
[380964772,1755912831174,-565.22,0.00019178,2]
[380964773,1755912831183,-457.37,0.00019178,2]
[380964774,1755912831193,-400.0,0.00019178,2]
[380964775,1755912831202,-454.18,0.00019178,2]
[380964776,1755912831212,-408.41,0.00019178,2]
[380964777,1755912831222,-429.23,0.00019178,2]
[380964778,1755912831231,-400.0,0.00019178,2]
[380964779,1755912831241,-400.0,0.00019178,2]
[380964780,1755912831250,-582.37,0.00019178,2]
[380964781,1755912831260,-759.88,0.00019178,2]
[380964782,1755912831269,-591.39,0.00019178,2]
[380964783,1755912831279,-413.97,0.00019178,2]
[380964784,1755912831288,-649.74,0.00019178,2]
[380964785,1755912831298,-506.47,0.00019178,2]
[380964786,1755912831308,-446.38,0.00019178,2]
[380964787,1755912831318,-715.02,0.00019178,2]
[380964788,1755912831328,-537.25,0.00019178,2]
[380964789,1755912831338,-400.0,0.00019178,2]
[380964790,1755912831347,-512.45,0.00019178,2]
[380964791,1755912831357,-527.41,0.00019178,2]
[380964792,1755912831367,-521.1,0.00019178,2]
[380964793,1755912831377,-446.92,0.00019178,2]
[380964794,1755912831386,-449.44,0.00019178,2]
[380964795,1755912831395,-675.1,0.00019178,2]
[380964796,1755912831405,-504.55522617,0.00019178,2]
[380964797,1755912831415,-654.03,0.00019178,2]
[380964798,1755912831426,-609.3,0.00019178,2]
[380964799,1755912831436,-661.96,0.00019178,2]
[380964800,1755912831445,-568.98,0.00019178,2]
[380964801,1755912831455,-226.06157697,0.00019178,2]
[380964802,1755912831465,-262.70298317,0.00019178,2]
[380964803,1755912831475,-709.86,0.00019178,2]
[380964804,1755912831484,-812.84,0.00019178,2]
[380964805,1755912831493,-437.4,0.00019178,2]
[380964806,1755912831502,-586.38,0.00019178,2]
[380964807,1755912831512,-442.27,0.00019178,2]
[380964808,1755912831521,-562.61,0.00019178,2]
[380964809,1755912831531,-372.87889711,0.00019178,2]
[380964810,1755912831541,-845.65,0.00019178,2]
[380964811,1755912831550,-441.24,0.00019178,2]
[380964812,1755912831560,-529.98,0.00019178,2]
[380964813,1755912831570,-570.39,0.00019178,2]
[380964814,1755912831579,-400.0,0.00019178,2]
[380964815,1755912831588,-421.77,0.00019178,2]
[380964816,1755912831598,-400.0,0.00019178,2]
[380964817,1755912831607,-400.0,0.00019178,2]
[380964818,1755912831617,-464.48,0.00019178,2]
[380964819,1755912831626,-415.36,0.00019178,2]
[380964820,1755912831635,-530.98,0.00019178,2]
[380964821,1755912831645,-512.43,0.00019178,2]
[380964822,1755912831655,-516.79,0.00019178,2]
[380964823,1755912831664,-400.0,0.00019178,2]
[380964824,1755912831674,-400.0,0.00019178,2]
[380964825,1755912831683,-409.44,0.00019178,2]
[380964826,1755912831693,-499.57,0.00019178,2]
[380964827,1755912831703,-577.94,0.00019178,2]
[380964828,1755912831712,-400.0,0.00019178,2]
[380964829,1755912831721,-476.9,0.00019178,2]
[380964830,1755912831731,-637.7,0.00019178,2]
[380964831,1755912831741,-423.83,0.00019178,2]
[380964832,1755912831750,-459.29,0.00019178,2]
[380964833,1755912831760,-873.47,0.00019178,2]
[380964834,1755912831770,-571.62,0.00019178,2]
[380964835,1755912831780,-409.95,0.00019178,2]
[380964836,1755912831789,-549.98,0.00019178,2]
[380964837,1755912831798,-400.0,0.00019178,2]
[380964838,1755912831808,-1704.41,0.00019178,2]
[380964839,1755912831817,-400.0,0.00019178,2]
[380964840,1755912831827,-531.47,0.00019178,2]
[380964841,1755912831837,-456.18,0.00019178,2]
[380964842,1755912831846,-335.036736,0.00019178,2]
[380964843,1755912831856,-890.29,0.00019178,2]
[380964844,1755912831866,-406.1,0.00019178,2]
[380964845,1755912831876,-421.32,0.00019178,2]
[380964846,1755912831887,-478.43,0.00019178,2]
[380964847,1755912831896,-487.04,0.00019178,2]
[380964848,1755912831906,-542.43,0.00019178,2]
[380964849,1755912831917,-510.81,0.00019178,2]
[380964850,1755912831927,-451.04,0.00019178,2]
[380964851,1755912831937,-477.02,0.00019178,2]
[380964852,1755912831946,-595.85,0.00019178,2]
[380964853,1755912831956,-667.8,0.00019178,2]
[380964854,1755912831966,-754.76,0.00019178,2]
[380964855,1755912831975,-400.0,0.00019178,2]
[380964856,1755912831985,-1030.1,0.00019178,2]
[380964857,1755912831994,-510.89,0.00019178,2]
[380964858,1755912832004,-436.99,0.00019178,2]
[380964859,1755912832013,-657.25,0.00019178,2]
[380964860,1755912832023,-400.0,0.00019178,2]
[380964861,1755912832033,-371.48274792,0.00019178,2]
[380964862,1755912832043,-400.0,0.00019178,2]
[380964863,1755912832053,-1067.81,0.00019178,2]
[380964864,1755912832064,-417.45,0.00019178,2]
[380964865,1755912832074,-400.0,0.00019178,2]
[380964866,1755912832084,-578.42,0.00019178,2]
[380964867,1755912832093,-786.01,0.00019178,2]
[380964868,1755912832103,-1145.67,0.00019178,2]
[380964869,1755912832113,-624.95,0.00019178,2]
[380964870,1755912832123,-439.98,0.00019178,2]
[380964871,1755912832132,-400.0,0.00019178,2]
[380964872,1755912832142,-734.24,0.00019178,2]
[380964873,1755912832152,-716.27,0.00019178,2]
[380964874,1755912832161,-400.0,0.00019178,2]
[380964875,1755912832170,-677.21,0.00019178,2]
[380964876,1755912832180,-400.0,0.00019178,2]
[380964877,1755912832189,-503.77,0.00019178,2]
[380964878,1755912832199,-651.98,0.00019178,2]
[380964879,1755912832209,-831.56,0.00019178,2]
[380964880,1755912832218,-742.35,0.00019178,2]
[380964881,1755912832228,-541.87,0.00019178,2]
[380964882,1755912832344,-320.53,0.00019178,2]
[380964883,1755912832354,-462.17,0.00019178,2]
[380964884,1755912832364,-422.39,0.00019178,2]
[380964885,1755912832374,-535.7,0.00019178,2]
[380964886,1755912832383,-598.88,0.00019178,2]
[380964887,1755912832393,-601.7,0.00019178,2]
[380964888,1755912832402,-729.0,0.00019178,2]
[380964889,1755912832411,-400.0,0.00019178,2]
[380964890,1755912832423,-400.0,0.00019178,2]
[380964891,1755912832433,-648.16,0.00019178,2]
[380964892,1755912832442,-482.06,0.00019178,2]
[380964893,1755912832451,-400.0,0.00019178,2]
[380964894,1755912832462,-560.98,0.00019178,2]
[380964895,1755912832471,-485.12,0.00019178,2]
[380964896,1755912832480,-581.45,0.00019178,2]
[380964897,1755912832490,-198.91708509,0.00019178,2]
[380964898,1755912832500,-607.66,0.00019178,2]
[380964899,1755912832510,-483.72,0.00019178,2]
[380964900,1755912832520,-506.32,0.00019178,2]
[380964901,1755912832529,-657.0,0.00019178,2]
[380964902,1755912832539,-460.21,0.00019178,2]
[380964903,1755912832549,-664.59,0.00019178,2]
[380964904,1755912832558,-463.13,0.00019178,2]
[380964905,1755912832568,-518.18,0.00019178,2]
[380964906,1755912832577,-548.04,0.00019178,2]
[380964907,1755912832587,-490.94,0.00019178,2]
[380964908,1755912832597,-623.23,0.00019178,2]
[380964909,1755912832606,-407.86,0.00019178,2]
[380964910,1755912832616,-538.71,0.00019178,2]
[380964911,1755912832625,-492.11,0.00019178,2]
[380964912,1755912832635,-585.32,0.00019178,2]
[380964913,1755912832645,-704.8,0.00019178,2]
[380964914,1755912832654,-419.51,0.00019178,2]
[380964915,1755912832664,-536.25,0.00019178,2]
[380964916,1755912832674,-369.83953741,0.00019178,2]
[380964917,1755912832683,-416.08,0.00019178,2]
[380964918,1755912832693,-685.75,0.00019178,2]
[380964919,1755912832702,-475.58,0.00019178,2]
[380964920,1755912832712,-1265.94,0.00019178,2]
[380964921,1755912832721,-400.0,0.00019178,2]
[380964922,1755912832730,-400.0,0.00019178,2]
[380964923,1755912832740,-433.85,0.00019178,2]
[380964924,1755912832749,-400.0,0.00019178,2]
[380964925,1755912832758,-400.0,0.00019178,2]
[380964926,1755912832767,-428.36,0.00019178,2]
[380964927,1755912832777,-427.61,0.00019178,2]
[380964928,1755912832786,-543.91,0.00019178,2]
[380964929,1755912832796,-763.66,0.00019178,2]
[380964930,1755912832805,-400.0,0.00019178,2]
[380964931,1755912832816,-482.08,0.00019178,2]
[380964932,1755912832825,-552.38,0.00019178,2]
[380964933,1755912832834,-793.95,0.00019178,2]
[380964934,1755912832844,-476.99,0.00019178,2]
[380964935,1755912832853,-607.86,0.00019178,2]
[380964936,1755912832863,-772.08,0.00019178,2]
[380964937,1755912832873,-577.68,0.00019178,2]
[380964938,1755912832883,-446.17,0.00019178,2]
[380964939,1755912832892,-499.75,0.00019178,2]
[380964940,1755912832901,-543.86,0.00019178,2]
[380964941,1755912832911,-707.33,0.00019178,2]
[380964942,1755912832921,-475.34,0.00019178,2]
[380964943,1755912832931,-156.17461,0.00019178,2]
[380964944,1755912832941,-602.1,0.00019178,2]
[380964945,1755912832950,-496.62,0.00019178,2]
[380964946,1755912832961,-480.32,0.00019178,2]
[380964947,1755912832972,-752.86,0.00019178,2]
[380964948,1755912832982,-633.62,0.00019178,2]
[380964949,1755912832992,-560.58,0.00019178,2]
[380964950,1755912833001,-400.0,0.00019178,2]
[380964951,1755912833011,-416.01,0.00019178,2]
[380964952,1755912833021,-428.79,0.00019178,2]
[380964953,1755912833030,-614.22,0.00019178,2]
[380964954,1755912833039,-425.3,0.00019178,2]
[380964955,1755912833049,-508.68,0.00019178,2]
[380964956,1755912833059,-470.91,0.00019178,2]
[380964957,1755912833069,-418.5,0.00019178,2]
[380964958,1755912833078,-193.17723,0.00019178,2]
[380964959,1755912833088,-535.36,0.00019178,2]
[380964960,1755912833097,-400.0,0.00019178,2]
[380964961,1755912833107,-747.8,0.00019178,2]
[380964962,1755912833119,-400.0,0.00019178,2]
[380964963,1755912833130,-433.94,0.00019178,2]
[380964964,1755912833139,-472.48,0.00019178,2]
[380964965,1755912833149,-855.010025,0.00019178,2]
[380964966,1755912833159,-631.75,0.00019178,2]
[380964967,1755912833168,-479.25,0.00019178,2]
[380964968,1755912833178,-737.35,0.00019178,2]
[380964969,1755912833187,-473.06,0.00019178,2]
[380964970,1755912833197,-400.0,0.00019178,2]
[380964971,1755912833207,-464.53,0.00019178,2]
[380964972,1755912833217,-451.38,0.00019178,2]
[380964973,1755912833227,-605.41,0.00019178,2]
[380964974,1755912833236,-400.0,0.00019178,2]
[380964975,1755912833246,-763.68,0.00019178,2]
[380964976,1755912833255,-437.52,0.00019178,2]
[380964977,1755912833264,-496.31,0.00019178,2]
[380964978,1755912833274,-517.63,0.00019178,2]
[380964979,1755912833283,-1076.1,0.00019178,2]
[380964980,1755912833293,-599.57,0.00019178,2]
[380964981,1755912833303,-578.64,0.00019178,2]
[380964982,1755912833313,-504.23278771,0.00019178,2]
[380964983,1755912833323,-531.82,0.00019178,2]
[380964984,1755912833333,-538.24,0.00019178,2]
[380964985,1755912833342,-596.46,0.00019178,2]
[380964986,1755912833352,-481.87,0.00019178,2]
[380964987,1755912833361,-876.45,0.00019178,2]
[380964988,1755912833372,-750.69,0.00019178,2]
[380964989,1755912833383,-400.0,0.00019178,2]
[380964990,1755912833393,-483.91,0.00019178,2]
[380964991,1755912833403,-429.94,0.00019178,2]
[380964992,1755912833412,-165.091098,0.00019178,2]
[380964993,1755912833424,-583.44,0.00019178,2]
[380964994,1755912833435,-400.0,0.00019178,2]
[380964995,1755912833445,-2560.03,0.00019178,2]
[380964996,1755912833455,-412.65,0.00019178,2]
[380964997,1755912833465,-400.0,0.00019178,2]
[380964998,1755912833474,-714.55,0.00019178,2]
[380964999,1755912833483,-466.47,0.00019178,2]
[380965000,1755912833492,-511.98,0.00019178,2]
[380965001,1755912833502,-198.92485671,0.00019178,2]
[380965002,1755912833512,-483.0,0.00019178,2]
[380965003,1755912833524,-400.0,0.00019178,2]
[380965004,1755912833534,-638.96,0.00019178,2]
[380965005,1755912833546,-626.45,0.00019178,2]
[380965006,1755912833556,-789.4,0.00019178,2]
[380965007,1755912833566,-411.07,0.00019178,2]
[380965008,1755912833576,-459.86,0.00019178,2]
[380965009,1755912833585,-590.56,0.00019178,2]
[380965010,1755912833594,-7170.55,0.00019178,2]
[380965011,1755912833605,-798.6,0.00019178,2]
[380965012,1755912833616,-489.74,0.00019178,2]
[380965013,1755912833627,-568.83,0.00019178,2]
[380965014,1755912833636,-556.35,0.00019178,2]
[380965015,1755912833646,-522.88,0.00019178,2]
[380965016,1755912833655,-414.4,0.00019178,2]
[380965017,1755912833664,-755.36,0.00019178,2]
[380965018,1755912833678,-2114.53,0.00019178,2]
[380965019,1755912833688,-400.0,0.00019178,2]
[380965020,1755912833698,-2594.59,0.00019178,2]
[380965021,1755912833707,-446.5,0.00019178,2]
[380965022,1755912833717,-529.92,0.00019178,2]
[380965023,1755912833726,-705.67,0.00019178,2]
[380965024,1755912833735,-896.87,0.00019178,2]
[380965025,1755912833744,-400.0,0.00019178,2]
[380965026,1755912833753,-741.74,0.00019178,2]
[380965027,1755912833763,-1094.77,0.00019178,2]
[380965028,1755912833772,-869.76,0.00019178,2]
[380965029,1755912833781,-562.13,0.00019178,2]
[380965030,1755912833791,-437.77,0.00019178,2]
[380965031,1755912833800,-1048.91,0.00019178,2]
[380965032,1755912833811,-541.27,0.00019178,2]
[380965033,1755912833821,-723.99,0.00019178,2]
[380965034,1755912833830,-418.69,0.00019178,2]
[380965035,1755912833840,-963.36,0.00019178,2]
[380965036,1755912833850,-685.08,0.00019178,2]
[380965037,1755912833859,-4903.23,0.00019178,2]
[380965038,1755912833869,-400.0,0.00019178,2]
[380965039,1755912833878,-614.11,0.00019178,2]
[380965040,1755912833888,-530.85,0.00019178,2]
[380965041,1755912833897,-956.53,0.00019178,2]
[380965042,1755912833907,-263.73331359,0.00019178,2]
[380965043,1755912833916,-508.77,0.00019178,2]
[380965044,1755912833925,-690.94,0.00019178,2]
[380965045,1755912833935,-781.78,0.00019178,2]
[380965046,1755912833945,-407.82,0.00019178,2]
[380965047,1755912833954,-573.49,0.00019178,2]
[380965048,1755912833964,-516.0,0.00019178,2]
[380965049,1755912833973,-548.91,0.00019178,2]
[380965050,1755912833983,-400.0,0.00019178,2]
[380965051,1755912833994,-2566.25,0.00019178,2]
[380965052,1755912834004,-468.96,0.00019178,2]
[380965053,1755912834014,-947.84,0.00019178,2]
[380965054,1755912834023,-659.68,0.00019178,2]
[380965055,1755912834033,-404.22823746,0.00019178,2]
[380965056,1755912834043,-691.7,0.00019178,2]
[380965057,1755912834053,-1053.52,0.00019178,2]
[380965058,1755912834065,-1155.0,0.00019178,2]
[380965059,1755912834074,-557.81,0.00019178,2]
[380965060,1755912834084,-1327.17,0.00019178,2]
[380965061,1755912834093,-719.87,0.00019178,2]
[380965062,1755912834103,-532.88,0.00019178,2]
[380965063,1755912834113,-482.24,0.00019178,2]
[380965064,1755912834122,-621.05,0.00019178,2]
[380965065,1755912834132,-825.64,0.00019178,2]
[380965066,1755912834141,-786.36,0.00019178,2]
[380965067,1755912834155,-400.0,0.00019178,2]
[380965068,1755912834164,-508.4,0.00019178,2]
[380965069,1755912834174,-811.77,0.00019178,2]
[380965070,1755912834184,-448.05,0.00019178,2]
[380965071,1755912834194,-522.09,0.00019178,2]
[380965072,1755912834203,-471.12,0.00019178,2]
[380965073,1755912834213,-478.08,0.00019178,2]
[380965074,1755912834222,-413.45,0.00019178,2]
[380965075,1755912834232,-494.11,0.00019178,2]
[380965076,1755912834242,-400.01,0.00019178,2]
[380965077,1755912834252,-1160.25,0.00019178,2]
[380965078,1755912834262,-1658.24,0.00019178,2]
[380965079,1755912834271,-876.0,0.00019178,2]
[380965080,1755912834280,-1082.57,0.00019178,2]
[380965081,1755912834289,-158.23972488,0.00019178,2]
[380965082,1755912834298,-576.13,0.00019178,2]
[380965083,1755912834307,-599.68,0.00019178,2]
[380965084,1755912834317,-928.99,0.00019178,2]
[380965085,1755912834327,-581.91,0.00019178,2]
[380965086,1755912834336,-704.93,0.00019178,2]
[380965087,1755912834345,-535.34,0.00019178,2]
[380965088,1755912834355,-909.17,0.00019178,2]
[380965089,1755912834364,-757.81,0.00019178,2]
[380965090,1755912834373,-629.77,0.00019178,2]
[380965091,1755912834383,-170.61434335,0.00019178,2]
[380965092,1755912834392,-458.74,0.00019178,2]
[380965093,1755912834402,-808.82,0.00019178,2]
[380965094,1755912834412,-400.0,0.00019178,2]
[380965095,1755912834426,-677.9,0.00019178,2]
[380965096,1755912834435,-1628.12,0.00019178,2]
[380965097,1755912834444,-556.37,0.00019178,2]
[380965098,1755912834453,-412.49,0.00019178,2]
[380965099,1755912834463,-562.56,0.00019178,2]
[380965100,1755912834472,-442.39,0.00019178,2]
[380965101,1755912834482,-554.4,0.00019178,2]
[380965102,1755912834493,-699.23,0.00019178,2]
[380965103,1755912834502,-627.55,0.00019178,2]
[380965104,1755912834512,-475.41,0.00019178,2]
[380965105,1755912834521,-901.46,0.00019178,2]
[380965106,1755912834531,-618.33,0.00019178,2]
[380965107,1755912834540,-493.66,0.00019178,2]
[380965108,1755912834549,-165.091095,0.00019178,2]
[380965109,1755912834558,-1043.76,0.00019178,2]
[380965110,1755912834568,-400.0,0.00019178,2]
[380965111,1755912834577,-682.29,0.00019178,2]
[380965112,1755912834587,-415.82,0.00019178,2]
[380965113,1755912834597,-491.94,0.00019178,2]
[380965114,1755912834607,-400.0,0.00019178,2]
[380965115,1755912834616,-640.17,0.00019178,2]
[380965116,1755912834626,-568.93,0.00019178,2]
[380965117,1755912834635,-427.73,0.00019178,2]
[380965118,1755912834645,-501.87,0.00019178,2]
[380965119,1755912834654,-468.97,0.00019178,2]
[380965120,1755912834663,-620.18,0.00019178,2]
[380965121,1755912834673,-537.21,0.00019178,2]
[380965122,1755912834682,-577.38,0.00019178,2]
[380965123,1755912834691,-773.99,0.00019178,2]
[380965124,1755912834702,-400.0,0.00019178,2]
[380965125,1755912834711,-400.0,0.00019178,2]
[380965126,1755912834720,-457.02,0.00019178,2]
[380965127,1755912834729,-400.0,0.00019178,2]
[380965128,1755912834738,-1005.26,0.00019178,2]
[380965129,1755912834747,-407.11,0.00019178,2]
[380965130,1755912834757,-646.19,0.00019178,2]
[380965131,1755912834766,-610.39,0.00019178,2]
[380965132,1755912834775,-933.58,0.00019178,2]
[380965133,1755912834785,-431.04,0.00019178,2]
[380965134,1755912834794,-400.0,0.00019178,2]
[380965135,1755912834803,-664.71,0.00019178,2]
[380965136,1755912834813,-605.05,0.00019178,2]
[380965137,1755912834822,-1070.54,0.00019178,2]
[380965138,1755912834832,-546.05,0.00019178,2]
[380965139,1755912834841,-410.97,0.00019178,2]
[380965140,1755912834850,-570.73,0.00019178,2]
[380965141,1755912834860,-938.83,0.00019178,2]
[380965142,1755912834870,-490.42,0.00019178,2]
[380965143,1755912834879,-716.24,0.00019178,2]
[380965144,1755912834888,-435.14756331,0.00019178,2]
[380965145,1755912834898,-697.95,0.00019178,2]
[380965146,1755912834907,-665.32,0.00019178,2]
[380965147,1755912834917,-731.6,0.00019178,2]
[380965148,1755912834928,-400.0,0.00019178,2]
[380965149,1755912834937,-1401.51,0.00019178,2]
[380965150,1755912834946,-509.97,0.00019178,2]
[380965151,1755912834956,-400.0,0.00019178,2]
[380965152,1755912834965,-474.27,0.00019178,2]
[380965153,1755912834974,-1143.48,0.00019178,2]
[380965154,1755912834983,-633.21,0.00019178,2]
[380965155,1755912834994,-551.73,0.00019178,2]
[380965156,1755912835004,-1150.35,0.00019178,2]
[380965157,1755912835013,-803.81,0.00019178,2]
[380965158,1755912835022,-507.56,0.00019178,2]
[380965159,1755912835031,-709.31,0.00019178,2]
[380965160,1755912835041,-400.0,0.00019178,2]
[380965161,1755912835051,-1049.21,0.00019178,2]
[380965162,1755912835060,-870.96,0.00019178,2]
[380965163,1755912835069,-640.94,0.00019178,2]
[380965164,1755912835078,-599.05,0.00019178,2]
[380965165,1755912835087,-518.56,0.00019178,2]
[380965166,1755912835097,-878.26,0.00019178,2]
[380965167,1755912835106,-784.45,0.00019178,2]
[380965168,1755912835115,-1743.04,0.00019178,2]
[380965169,1755912835124,-671.68,0.00019178,2]
[380965170,1755912835134,-939.87,0.00019178,2]
[380965171,1755912835143,-538.86,0.00019178,2]
[380965172,1755912835152,-582.18,0.00019178,2]
[380965173,1755912835162,-400.0,0.00019178,2]
[380965174,1755912835171,-983.76,0.00019178,2]
[380965175,1755912835181,-839.71,0.00019178,2]
[380965176,1755912835190,-743.59,0.00019178,2]
[380965177,1755912835199,-706.05,0.00019178,2]
[380965178,1755912835208,-400.0,0.00019178,2]
[380965179,1755912835217,-1278.62,0.00019178,2]
[380965180,1755912835227,-890.17,0.00019178,2]
[380965181,1755912835236,-1021.93,0.00019178,2]
[380965182,1755912835245,-400.0,0.00019178,2]
[380965183,1755912835255,-649.66,0.00019178,2]
[380965184,1755912835265,-527.2,0.00019178,2]
[380965185,1755912835274,-784.4,0.00019178,2]
[380965186,1755912835284,-634.12,0.00019178,2]
[380965187,1755912835295,-971.12,0.00019178,2]
[380965188,1755912835304,-726.51,0.00019178,2]
[380965189,1755912835315,-1154.79,0.00019178,2]
[380965190,1755912835324,-754.33,0.00019178,2]
[380965191,1755912835334,-1099.97,0.00019178,2]
[380965192,1755912835344,-1157.08,0.00019178,2]
[380965193,1755912835353,-535.95,0.00019178,2]
[380965194,1755912835363,-888.95,0.00019178,2]
[380965195,1755912835373,-691.37,0.00019178,2]
[380965196,1755912835383,-656.19,0.00019178,2]
[380965197,1755912835394,-985.25,0.00019178,2]
[380965198,1755912835403,-807.2,0.00019178,2]
[380965199,1755912835414,-1203.18,0.00019178,2]
[380965200,1755912835426,-1439.09,0.00019178,2]
[380965201,1755912835436,-659.77,0.00019178,2]
[380965202,1755912835445,-583.57,0.00019178,2]
[380965203,1755912835455,-731.16,0.00019178,2]
[380965204,1755912835464,-890.52,0.00019178,2]
[380965205,1755912835474,-766.72,0.00019178,2]
[380965206,1755912835483,-855.77,0.00019178,2]
[380965207,1755912835493,-400.0,0.00019178,2]
[380965208,1755912835503,-635.62,0.00019178,2]
[380965209,1755912835512,-400.0,0.00019178,2]
[380965210,1755912835522,-986.02,0.00019178,2]
[380965211,1755912835532,-466.03,0.00019178,2]
[380965212,1755912835542,-963.55,0.00019178,2]
[380965213,1755912835551,-482.07,0.00019178,2]
[380965214,1755912835561,-1494.7,0.00019178,2]
[380965215,1755912835571,-507.72,0.00019178,2]
[380965216,1755912835581,-859.0,0.00019178,2]
[380965217,1755912835590,-777.58,0.00019178,2]
[380965218,1755912835600,-828.37,0.00019178,2]
[380965219,1755912835610,-967.68,0.00019178,2]
[380965220,1755912835620,-506.23,0.00019178,2]
[380965221,1755912835630,-479.67,0.00019178,2]
[380965222,1755912835640,-781.12,0.00019178,2]
[380965223,1755912835650,-755.98,0.00019178,2]
[380965224,1755912835660,-937.77,0.00019178,2]
[380965225,1755912835670,-585.32,0.00019178,2]
[380965226,1755912835680,-941.46,0.00019178,2]
[380965227,1755912835689,-979.86,0.00019178,2]
[380965228,1755912835699,-873.74,0.00019178,2]
[380965229,1755912835709,-1039.23,0.00019178,2]
[380965230,1755912835719,-650.0,0.00019178,2]
[380965231,1755912835729,-400.0,0.00019178,2]
[380965232,1755912835739,-505.4,0.00019178,2]
[380965233,1755912835749,-764.74,0.00019178,2]
[380965234,1755912835759,-545.13,0.00019178,2]
[380965235,1755912835769,-792.76,0.00019178,2]
[380965236,1755912835778,-822.02,0.00019178,2]
[380965237,1755912835788,-958.27,0.00019178,2]
[380965238,1755912835798,-173.295363,0.00019178,2]
[380965239,1755912835808,-493.69,0.00019178,2]
[380965240,1755912835818,-421.89713749,0.00019178,2]
[380965241,1755912835827,-724.98,0.00019178,2]
[380965242,1755912835838,-550.01,0.00019178,2]
[380965243,1755912835848,-400.0,0.00019178,2]
[380965244,1755912835859,-957.7,0.00019178,2]
[380965245,1755912835869,-712.18,0.00019178,2]
[380965246,1755912835881,-532.46,0.00019178,2]
[380965247,1755912835891,-484.95,0.00019178,2]
[380965248,1755912835901,-839.82,0.00019178,2]
[380965249,1755912835911,-400.0,0.00019178,2]
[380965250,1755912835921,-3061.19,0.00019178,2]
[380965251,1755912835931,-402.87,0.00019178,2]
[380965252,1755912835941,-668.01,0.00019178,2]
[380965253,1755912835952,-440.73,0.00019178,2]
[380965254,1755912835963,-911.43,0.00019178,2]
[380965255,1755912835973,-931.59,0.00019178,2]
[380965256,1755912835983,-241.33706809,0.00019178,2]
[380965257,1755912835993,-400.0,0.00019178,2]
[380965258,1755912836004,-585.39,0.00019178,2]
[380965259,1755912836014,-631.42,0.00019178,2]
[380965260,1755912836023,-821.68,0.00019178,2]
[380965261,1755912836034,-151.0,0.00019178,2]
[380965262,1755912836045,-1697.7973,0.00019178,2]
[380965263,1755912836055,-1000.0,0.00019178,2]
[380965264,1755912836066,-1000.0,0.00019178,2]
[380965265,1755912836075,-1000.0,0.00019178,2]
[380965266,1755912836085,-1000.0,0.00019178,2]
[380965267,1755912836095,-1000.0,0.00019178,2]
[380965268,1755912836105,-1000.0,0.00019178,2]